bitfinex-derivatives/quotes_ETHF0:USTF0_20210110
["timestamp","ask_amount","ask_price","bid_price","bid_amount"]
[1610251931724,4.00959,1315.0,1314.9,4.00959]
[1610251932123,1.8875,1315.1,1314.9,4.00959]
[1610251932323,2.2881,1315.5,1314.9,4.00959]
[1610251932730,35.9242,1318.3,1314.9,4.00959]
[1610251932925,35.9242,1318.3,1314.9,7.41459]
[1610251933325,5.9242,1318.3,1314.9,11.52886]
[1610251933525,5.9242,1318.3,1314.9,41.52886]
[1610251933726,5.9242,1318.3,1315.9,4.00959]
[1610251933927,11.6629,1318.3,1315.9,4.00959]
[1610251934726,45.618,1315.7,1315.1,32.1289]
[1610251934926,1.936,1316.1,1315.1,32.1289]
[1610251935527,1.936,1316.1,1315.1,2.1289]
[1610251935726,4.00959,1315.5,1315.4,4.00959]
[1610251936929,1.936,1316.1,1315.4,4.00959]
[1610251937728,4.00959,1315.9,1315.8,4.00959]
[1610251940833,4.00959,1315.9,1315.2,34.10967]
[1610251941032,4.00959,1315.9,1315.2,38.22916]
[1610251941634,4.00959,1315.9,1315.2,8.22916]
[1610251941833,1.936,1316.1,1315.6,4.00959]
[1610251942035,41.6629,1318.3,1315.6,4.00959]
[1610251942436,11.6629,1318.3,1315.6,4.00959]
[1610251943836,4.00959,1315.7,1315.6,4.00959]
[1610251947039,4.00959,1315.7,1315.2,46.50353]
[1610251947639,4.00959,1315.7,1315.2,50.6369]
[1610251947839,4.00959,1315.7,1315.6,4.00959]
[1610251950941,1.8108,1316.1,1315.6,4.00959]
[1610251951343,47.0727,1316.3,1315.6,4.00959]
[1610251951941,47.0727,1316.3,1316.1,4.00959]
[1610251953544,4.00959,1316.4,1316.1,4.00959]
[1610251953744,4.00959,1316.4,1315.5,4.13032]
[1610251953944,1.7853,1316.4,1316.1,4.00959]
[1610251955944,4.00959,1316.2,1316.1,4.00959]
[1610251956146,1.7853,1316.4,1316.1,4.00959]
[1610251956746,62.8497,1317.4,1316.1,34.00959]
[1610251957949,62.8497,1317.4,1317.1,4.00959]
[1610251959854,4.00959,1317.2,1317.1,4.00959]
[1610251961659,65.2792,1317.4,1317.1,4.00959]
[1610251961862,62.8497,1317.4,1317.3,4.00959]
[1610251962961,4.00959,1317.7,1317.3,4.00959]
[1610251963960,4.00959,1317.7,1317.6,4.00959]
[1610251967365,61.1561,1318.1,1317.6,4.00959]
[1610251967966,61.1561,1318.1,1318.0,4.00959]
[1610251972470,4.00959,1318.3,1318.0,4.00959]
[1610251973074,49.3899,1319.2,1318.0,4.00959]
[1610251974173,4.00959,1318.8,1318.3,4.00959]
[1610251977477,49.3899,1319.2,1318.3,4.00959]
[1610251977879,49.3899,1319.2,1318.3,6.37439]
[1610251978879,4.00959,1319.3,1318.3,6.37439]
[1610251985587,1.8766,1319.6,1318.3,36.37439]
[1610251986689,1.8766,1319.6,1318.3,6.37439]
[1610251987394,1.8766,1319.6,1318.3,36.37439]
[1610251988696,1.8766,1319.6,1318.3,6.37439]
[1610251988994,1.8766,1319.6,1318.3,36.37439]
[1610251990794,1.7476,1319.9,1318.3,36.37439]
[1610251991194,1.7476,1319.9,1318.3,6.37439]
[1610251991597,1.7476,1319.9,1318.3,36.37439]
[1610251994600,4.00959,1320.0,1318.3,36.37439]
[1610251998209,4.00959,1319.8,1318.3,36.37439]
[1610251998811,1.6038,1320.2,1318.3,36.37439]
[1610252000110,4.00959,1320.0,1318.3,36.37439]
[1610252002112,5.61339,1320.2,1318.3,36.37439]
[1610252005221,1.6038,1320.2,1318.3,36.37439]
[1610252005521,55.3264,1320.4,1318.3,36.37439]
[1610252005722,10.4514,1318.4,1318.3,36.37439]
[1610252006522,10.4514,1318.4,1318.3,40.91001]
[1610252007723,55.3264,1320.4,1318.3,40.91001]
[1610252007924,55.3264,1320.4,1318.3,44.31501]
[1610252008123,55.3264,1320.4,1320.3,4.00959]
[1610252008723,2.5681,1320.6,1320.3,4.00959]
[1610252010328,4.00959,1320.4,1319.6,2.4236]
[1610252011329,4.00959,1320.4,1319.1,4.08636]
[1610252011729,4.00959,1320.4,1319.0,34.08841]
[1610252012130,4.00959,1320.4,1319.0,30.0]
[1610252012330,2.5681,1320.6,1319.9,4.00959]
[1610252012532,2.3838,1320.9,1319.9,4.00959]
[1610252012730,55.0509,1321.6,1319.9,4.00959]
[1610252014331,4.00959,1320.0,1319.9,4.00959]
[1610252016336,1.7581,1320.2,1319.9,4.00959]
[1610252018338,1.7581,1320.2,1320.1,4.00959]
[1610252019538,5.8165,1321.8,1320.1,4.00959]
[1610252020343,4.00959,1320.9,1320.8,4.00959]
[1610252020740,6.22189,1320.9,1319.3,30.0]
[1610252022241,2.2123,1320.9,1319.3,30.0]
[1610252022441,2.2123,1320.9,1319.2,5.2637]
[1610252023043,2.2123,1320.9,1319.2,35.2637]
[1610252024042,2.2123,1320.9,1319.2,5.2637]
[1610252024242,4.00959,1320.2,1320.0,4.00959]
[1610252025443,1.6921,1320.4,1320.0,4.00959]
[1610252026343,5.70169,1320.4,1320.3,4.00959]
[1610252027041,5.70169,1320.4,1319.2,35.2637]
[1610252027844,5.70169,1320.4,1319.2,5.2637]
[1610252028244,1.6921,1320.4,1320.0,4.00959]
[1610252029843,2.2123,1320.9,1320.0,4.00959]
[1610252030043,55.7656,1321.5,1320.0,4.00959]
[1610252030243,4.00959,1320.1,1320.0,4.00959]
[1610252033753,1.8938,1320.4,1320.0,4.00959]
[1610252034254,1.8938,1320.4,1320.3,4.00959]
[1610252035458,4.00959,1320.6,1320.3,4.00959]
[1610252036357,4.00959,1320.4,1319.9,4.00959]
[1610252036557,6.24059,1320.4,1319.9,4.00959]
[1610252038260,4.00959,1320.1,1319.9,4.00959]
[1610252039060,4.00959,1320.1,1319.2,5.2637]
[1610252039360,6.15689,1320.1,1319.2,5.2637]
[1610252040163,6.15689,1320.1,1319.6,3.64169]
[1610252040363,4.00959,1319.7,1319.6,3.64169]
[1610252040763,2.1473,1320.1,1319.6,3.64169]
[1610252040963,2.1473,1320.1,1319.5,3.63858]
[1610252041265,2.1473,1320.1,1319.6,3.63826]
[1610252041666,2.1473,1320.1,1319.5,3.63814]
[1610252041864,2.1473,1320.1,1319.4,4.00959]
[1610252042266,2.1473,1320.1,1319.2,3.405]
[1610252042666,2.1473,1320.1,1319.4,3.6336]
[1610252044068,2.1473,1320.1,1319.5,3.63155]
[1610252044271,4.00959,1319.9,1319.6,4.00959]
[1610252044670,2.1473,1320.1,1319.6,4.00959]
[1610252044973,2.231,1320.4,1319.6,4.00959]
[1610252045370,43.1363,1320.9,1319.6,4.00959]
[1610252046373,43.1363,1320.9,1319.8,4.00959]
[1610252046875,43.1363,1320.9,1319.5,3.63155]
[1610252047074,45.3862,1320.9,1319.5,3.63155]
[1610252047673,2.2499,1320.9,1319.5,3.63155]
[1610252048075,2.2499,1320.9,1319.6,3.62175]
[1610252048275,2.2499,1320.9,1320.0,4.00959]
[1610252048677,2.2499,1320.9,1319.6,3.62175]
[1610252049677,2.2499,1320.9,1319.5,3.61678]
[1610252050278,2.2499,1320.9,1319.7,4.00959]
[1610252052180,43.9443,1321.1,1319.7,4.00959]
[1610252052380,4.00959,1319.8,1319.7,4.00959]
[1610252052782,4.00959,1319.8,1319.5,3.61678]
[1610252052981,4.00959,1319.8,1319.4,3.61423]
[1610252053982,4.00959,1319.8,1319.3,3.6153]
[1610252054380,2.0143,1320.0,1319.5,4.00959]
[1610252056383,4.00959,1319.9,1319.5,4.00959]
[1610252056984,2.0143,1320.0,1319.5,4.00959]
[1610252057485,2.0143,1320.0,1319.5,7.63039]
[1610252057785,5.8501,1321.0,1319.5,7.63039]
[1610252058388,5.8501,1321.0,1319.9,4.00959]
[1610252060391,4.00959,1320.0,1319.9,4.00959]
[1610252062091,2.3323,1320.1,1319.9,4.00959]
[1610252065693,4.00959,1320.4,1319.9,4.00959]
[1610252066395,4.00959,1320.4,1320.3,4.00959]
[1610252066596,4.00959,1320.4,1319.7,3.62552]
[1610252066795,6.48429,1320.4,1319.7,3.62552]
[1610252067396,6.48429,1320.4,1319.8,3.6264]
[1610252068297,6.48429,1320.4,1319.8,33.6264]
[1610252068498,6.48429,1320.4,1320.0,4.00959]
[1610252071806,6.48429,1320.4,1320.0,34.00959]
[1610252072203,6.48429,1320.4,1320.0,37.63292]
[1610252072406,6.48429,1320.4,1320.3,4.00959]
[1610252072606,6.48429,1320.4,1320.3,34.00959]
[1610252073610,6.48429,1320.4,1320.3,4.00959]
[1610252076712,6.48429,1320.4,1320.3,34.00959]
[1610252077515,6.48429,1320.4,1320.3,37.62946]
[1610252079115,2.4747,1320.4,1320.3,37.62946]
[1610252079316,2.3232,1320.9,1320.3,37.62946]
[1610252079816,2.3232,1320.9,1320.3,34.00959]
[1610252080217,2.3232,1320.9,1320.3,37.62947]
[1610252080417,2.3232,1320.9,1320.7,4.00959]
[1610252082421,6.33279,1320.9,1320.7,4.00959]
[1610252082622,6.33279,1320.9,1320.7,34.00959]
[1610252083723,6.33279,1320.9,1320.7,4.00959]
[1610252083923,6.33279,1320.9,1320.7,34.00959]
[1610252084724,2.3232,1320.9,1320.7,34.00959]
[1610252084925,45.1211,1321.5,1320.7,34.00959]
[1610252085224,55.9195,1322.3,1320.7,37.62665]
[1610252085624,55.9195,1322.3,1320.9,30.0]
[1610252085924,55.9195,1322.3,1320.9,33.61444]
[1610252086425,4.00959,1321.4,1321.2,4.00959]
[1610252086624,6.09369,1321.4,1321.2,4.00959]
[1610252087326,6.09369,1321.4,1320.8,3.61397]
[1610252088227,6.09369,1321.4,1320.7,33.61517]
[1610252088426,6.09369,1321.4,1321.2,4.00959]
[1610252090230,6.09369,1321.4,1320.8,3.61494]
[1610252090431,4.00959,1321.1,1320.9,4.00959]
[1610252090631,4.00959,1321.1,1320.7,3.61516]
[1610252091432,4.00959,1321.1,1320.6,3.61754]
[1610252092231,4.00959,1321.1,1320.6,33.61754]
[1610252092431,4.00959,1320.8,1320.7,4.00959]
[1610252092632,2.0841,1321.4,1320.7,4.00959]
[1610252092831,5.6016,1322.2,1320.7,37.62828]
[1610252093831,5.6016,1322.2,1320.8,3.62348]
[1610252094032,5.6016,1322.2,1320.8,33.62348]
[1610252094434,4.00959,1321.0,1320.8,33.62348]
[1610252094834,4.00959,1321.0,1320.8,30.0]
[1610252095034,4.00959,1321.0,1320.7,7.6335]
[1610252095235,1.6368,1321.3,1320.7,7.6335]
[1610252096436,4.00959,1320.9,1320.7,7.6335]
[1610252097539,1.6368,1321.3,1320.7,7.6335]
[1610252097738,1.6368,1321.3,1320.7,37.6335]
[1610252098139,1.6368,1321.3,1320.8,3.62266]
[1610252098441,5.64639,1321.3,1321.1,4.00959]
[1610252099941,5.64639,1321.3,1320.8,3.61709]
[1610252100442,4.00959,1321.0,1320.9,4.00959]
[1610252101143,4.00959,1321.0,1320.9,7.62528]
[1610252101544,4.00959,1321.0,1320.9,37.62528]
[1610252101744,4.00959,1321.0,1320.9,34.00959]
[1610252102044,4.00959,1321.0,1320.9,37.62492]
[1610252102445,4.00959,1321.0,1320.9,7.62492]
[1610252104550,4.00959,1321.0,1320.9,3.61533]
[1610252104749,5.73629,1321.0,1320.8,3.6245]
[1610252104949,5.73629,1321.0,1320.6,3.62657]
[1610252105350,5.73629,1321.0,1320.5,3.62891]
[1610252105948,5.73629,1321.0,1320.4,3.63009]
[1610252106449,4.00959,1320.5,1320.4,3.63009]
[1610252106649,4.00959,1320.5,1320.3,4.00959]
[1610252106650,4.00959,1320.5,1320.3,7.64128]
[1610252106850,5.68679,1320.5,1320.3,7.64128]
[1610252107851,5.68679,1320.5,1320.3,3.63169]
[1610252108251,1.6772,1320.5,1320.3,3.63169]
[1610252108452,5.68679,1320.5,1320.4,4.00959]
[1610252108651,5.68679,1320.5,1320.3,3.63169]
[1610252109253,5.68679,1320.5,1320.2,3.63363]
[1610252109455,5.68679,1320.5,1320.3,30.0]
[1610252109653,1.6772,1320.5,1320.3,30.0]
[1610252110155,1.6772,1320.5,1320.3,33.63177]
[1610252110555,5.68679,1320.5,1320.4,4.00959]
[1610252112460,5.68679,1320.5,1320.2,7.64345]
[1610252114261,5.68679,1320.5,1320.3,3.64085]
[1610252115264,5.68679,1320.5,1320.2,7.65315]
[1610252115964,5.68679,1320.5,1320.3,3.64414]
[1610252116164,5.68679,1320.5,1320.2,7.65449]
[1610252116464,5.68679,1320.5,1320.3,3.64477]
[1610252116866,5.68679,1320.5,1320.2,7.6547]
[1610252117365,5.68679,1320.5,1320.3,3.6439]
[1610252117965,5.68679,1320.5,1320.2,7.65404]
[1610252118567,4.00959,1320.3,1320.2,7.65404]
[1610252119669,4.00959,1320.3,1320.2,3.64445]
[1610252120474,4.00959,1320.3,1320.2,7.65404]
[1610252122075,13.6772,1320.5,1320.2,7.65404]
[1610252122474,4.00959,1320.4,1320.3,3.65426]
[1610252122773,4.00959,1320.4,1320.2,7.66467]
[1610252124074,4.00959,1320.4,1320.2,3.65508]
[1610252124874,4.00959,1320.4,1320.0,3.65727]
[1610252125475,4.00959,1320.4,1319.9,3.65951]
[1610252126476,4.00959,1320.0,1319.8,3.66321]
[1610252126676,6.39919,1320.0,1319.8,3.66321]
[1610252126876,6.39919,1320.0,1319.7,3.6638]
[1610252127476,6.39919,1320.0,1319.6,3.66587]
[1610252127678,6.39919,1320.0,1319.5,3.66784]
[1610252127976,6.39919,1320.0,1319.3,3.67133]
[1610252128477,4.00959,1319.4,1319.3,3.67133]
[1610252128676,6.24619,1319.4,1319.3,3.67133]
[1610252129382,6.24619,1319.4,1318.9,4.00959]
[1610252129781,6.24619,1319.4,1319.3,3.67113]
[1610252131382,6.24619,1319.4,1319.2,3.67452]
[1610252131883,6.24619,1319.4,1319.1,3.67536]
[1610252132586,4.00959,1319.2,1319.0,3.67725]
[1610252134789,4.00959,1319.2,1319.1,3.67763]
[1610252135190,4.00959,1319.2,1319.0,3.67786]
[1610252135389,4.00959,1319.2,1319.1,3.6786]
[1610252136390,4.00959,1319.2,1319.0,3.67953]
[1610252138391,4.00959,1319.2,1318.9,3.68246]
[1610252138591,4.00959,1319.0,1318.9,3.68246]
[1610252138791,5.71969,1319.0,1318.9,3.68246]
[1610252139393,5.71969,1319.0,1318.4,4.00959]
[1610252139793,5.71969,1319.0,1318.9,3.68124]
[1610252139994,5.71969,1319.0,1318.4,4.00959]
[1610252140297,5.71969,1319.0,1318.4,8.15022]
[1610252140497,4.00959,1318.6,1318.4,8.15022]
[1610252140896,1.983,1318.7,1318.4,8.15022]
[1610252141299,1.983,1318.7,1318.4,38.15022]
[1610252141499,1.983,1318.7,1318.5,4.13725]
[1610252141696,1.983,1318.7,1318.5,34.13725]
[1610252141896,1.983,1318.7,1318.5,30.0]
[1610252142599,1.983,1318.7,1318.6,4.00959]
[1610252142996,1.7101,1319.0,1318.6,4.00959]
[1610252143197,1.7101,1319.0,1318.8,4.1331]
[1610252143798,4.00959,1319.3,1318.8,4.1331]
[1610252144398,2.2366,1319.4,1318.9,4.13301]
[1610252144599,4.00959,1319.6,1319.3,4.00959]
[1610252144998,4.00959,1319.6,1319.5,3.67472]
[1610252145403,4.00959,1319.6,1319.4,3.67586]
[1610252145601,5.89599,1319.6,1319.4,3.67586]
[1610252145802,5.89599,1319.6,1319.3,3.67809]
[1610252146104,5.89599,1319.6,1319.2,3.67942]
[1610252146701,4.00959,1319.3,1319.1,4.00959]
[1610252147104,5.79369,1319.3,1319.1,4.00959]
[1610252147301,5.79369,1319.3,1318.6,4.13935]
[1610252147702,5.79369,1319.3,1318.7,4.13793]
[1610252148204,5.79369,1319.3,1319.2,3.67947]
[1610252151207,5.79369,1319.3,1319.1,3.67405]
[1610252151807,5.79369,1319.3,1319.0,3.67492]
[1610252152208,5.79369,1319.3,1318.9,3.6755]
[1610252152608,4.00959,1319.0,1318.9,3.6755]
[1610252152809,6.34999,1319.0,1318.9,3.6755]
[1610252154911,2.3404,1319.0,1318.9,3.6755]
[1610252155513,2.3404,1319.0,1318.4,8.14897]
[1610252155816,2.3404,1319.0,1318.5,4.13852]
[1610252156614,2.3404,1319.0,1318.9,4.00959]
[1610252157314,2.3404,1319.0,1318.5,4.13852]
[1610252157515,2.3404,1319.0,1318.4,4.14047]
[1610252157716,1.7841,1319.3,1318.4,4.14047]
[1610252157916,1.8864,1319.6,1318.3,4.14303]
[1610252158116,56.2856,1319.9,1319.0,3.68377]
[1610252158716,4.00959,1319.1,1319.0,3.68377]
[1610252158916,5.64059,1319.1,1319.0,3.68377]
[1610252159516,5.64059,1319.1,1318.9,3.68522]
[1610252160519,5.64059,1319.1,1318.8,3.68676]
[1610252160720,4.00959,1318.9,1318.8,3.68676]
[1610252164425,4.00959,1318.9,1318.5,4.00959]
[1610252164628,4.00959,1318.6,1318.5,4.00959]
[1610252170633,1.5851,1318.7,1318.5,4.00959]
[1610252170834,1.631,1319.1,1318.5,4.00959]
[1610252171033,5.7947,1320.4,1318.5,4.00959]
[1610252171235,5.7947,1320.4,1318.5,8.15218]
[1610252171838,5.7947,1320.4,1319.3,3.68075]
[1610252172736,4.00959,1319.4,1319.3,3.68075]
[1610252172936,6.50629,1319.4,1319.3,3.68075]
[1610252173539,6.50629,1319.4,1319.2,3.68312]
[1610252174044,6.50629,1319.4,1319.1,3.68476]
[1610252174639,4.00959,1319.2,1319.1,3.68476]
[1610252175340,4.00959,1319.2,1319.0,3.68662]
[1610252175740,4.00959,1319.2,1319.1,3.68642]
[1610252176342,4.00959,1319.2,1319.0,3.68759]
[1610252177841,4.00959,1319.2,1318.9,3.68829]
[1610252178241,4.00959,1319.2,1319.0,3.68771]
[1610252180477,4.00959,1319.2,1318.9,3.68836]
[1610252180509,4.00959,1319.2,1319.0,3.68767]
[1610252180517,4.00959,1319.2,1318.9,3.68781]
[1610252180842,4.00959,1319.2,1319.0,3.68863]
[1610252181143,4.00959,1319.2,1318.9,3.68879]
[1610252181744,4.00959,1319.2,1319.0,3.68839]
[1610252183545,2.4967,1319.4,1319.1,3.68541]
[1610252183746,5.5627,1321.4,1319.3,3.6829]
[1610252184145,5.5627,1321.4,1319.4,3.68088]
[1610252184545,5.5627,1321.4,1319.5,3.67895]
[1610252184745,5.5627,1321.4,1319.6,4.00959]
[1610252184947,5.5627,1321.4,1319.6,7.68741]
[1610252186749,5.5627,1321.4,1319.8,4.00959]
[1610252187749,5.5627,1321.4,1319.8,7.68758]
[1610252188751,4.00959,1320.1,1319.8,7.68758]
[1610252188952,5.91909,1320.1,1319.8,7.68758]
[1610252190051,5.91909,1320.1,1319.8,4.00959]
[1610252190252,5.91909,1320.1,1319.8,7.69114]
[1610252190751,5.91909,1320.1,1320.0,4.00959]
[1610252192053,5.91909,1320.1,1319.8,3.68155]
[1610252192354,5.91909,1320.1,1319.7,3.6845]
[1610252192654,5.91909,1320.1,1319.8,3.68453]
[1610252192853,4.00959,1319.9,1319.8,7.69412]
[1610252195353,4.00959,1319.9,1319.8,3.68453]
[1610252195555,4.00959,1319.9,1319.7,3.6868]
[1610252196855,4.00959,1319.9,1319.7,4.00959]
[1610252197156,4.00959,1319.9,1319.7,7.69908]
[1610252197954,4.00959,1319.9,1319.7,3.68949]
[1610252198356,4.00959,1319.9,1319.6,3.68947]
[1610252198757,4.00959,1319.7,1319.5,7.70075]
[1610252198957,6.36919,1319.7,1319.5,7.70075]
[1610252200257,6.36919,1319.7,1319.6,3.68954]
[1610252201359,2.3596,1319.7,1319.5,4.00959]
[1610252203361,2.3596,1319.7,1319.6,30.0]
[1610252203962,5.91909,1320.1,1319.6,30.0]
[1610252204566,5.91909,1320.1,1319.9,3.68328]
[1610252204766,5.91909,1320.1,1320.0,4.00959]
[1610252205866,1.9095,1320.1,1320.0,4.00959]
[1610252206066,5.5627,1321.4,1320.0,4.00959]
[1610252206766,4.00959,1320.1,1320.0,4.00959]
[1610252206970,5.78449,1320.1,1320.0,4.00959]
[1610252216079,5.78449,1320.1,1319.9,3.67824]
[1610252216581,5.78449,1320.1,1319.8,3.67641]
[1610252216783,4.00959,1319.9,1319.8,3.67641]
[1610252217183,4.00959,1319.9,1319.6,3.68051]
[1610252217985,4.00959,1319.9,1319.5,3.68196]
[1610252218385,4.00959,1319.9,1319.4,3.68263]
[1610252218585,4.00959,1319.9,1319.1,3.68741]
[1610252218785,4.00959,1319.2,1319.1,3.68741]
[1610252218986,6.11999,1319.2,1318.7,3.69166]
[1610252219586,6.11999,1319.2,1318.6,3.69307]
[1610252220789,4.00959,1318.7,1318.6,3.69307]
[1610252220989,6.12729,1318.7,1318.5,3.70006]
[1610252221289,6.12729,1318.7,1318.3,3.70234]
[1610252222790,4.00959,1318.4,1318.3,3.70234]
[1610252222989,5.77449,1318.4,1318.3,3.70234]
[1610252223390,1.7649,1318.4,1318.0,30.0]
[1610252224093,1.7649,1318.4,1318.0,34.15542]
[1610252224393,1.7649,1318.4,1318.1,4.15395]
[1610252224794,1.7649,1318.4,1318.0,4.15567]
[1610252224992,1.7649,1318.4,1318.3,4.00959]
[1610252225995,1.7649,1318.4,1318.0,4.15567]
[1610252226195,1.7649,1318.4,1317.9,4.15722]
[1610252226794,4.00959,1318.1,1317.9,4.15722]
[1610252226995,5.60149,1318.1,1317.8,8.16898]
[1610252227196,5.60149,1318.1,1317.9,4.15979]
[1610252227596,5.60149,1318.1,1317.8,8.16969]
[1610252228397,5.60149,1318.1,1317.7,4.1615]
[1610252229000,4.00959,1317.8,1317.6,4.16548]
[1610252229197,5.73669,1317.8,1317.6,4.16548]
[1610252229397,5.73669,1317.8,1317.5,4.1671]
[1610252229797,5.73669,1317.8,1317.4,4.16873]
[1610252231001,4.00959,1317.5,1317.3,4.17066]
[1610252232905,4.00959,1317.5,1317.4,4.1679]
[1610252233205,1.7271,1317.8,1317.4,4.1679]
[1610252233805,1.7271,1317.8,1317.5,4.16707]
[1610252234205,1.5919,1318.1,1317.5,4.16707]
[1610252234407,1.7649,1318.4,1317.5,4.16707]
[1610252234606,2.1177,1318.7,1317.5,4.16707]
[1610252234806,11.5685,1319.8,1317.5,4.16707]
[1610252235007,4.00959,1318.1,1317.6,4.00959]
[1610252235206,5.89179,1318.1,1317.6,4.00959]
[1610252235408,5.89179,1318.1,1317.6,8.174]
[1610252235807,5.89179,1318.1,1317.6,4.00959]
[1610252236910,1.8822,1318.1,1317.6,4.00959]
[1610252237812,1.8822,1318.1,1317.6,8.17154]
[1610252238911,1.8822,1318.1,1317.9,4.00959]
[1610252239913,1.8822,1318.1,1317.6,4.16195]
[1610252240315,58.0077,1318.8,1317.6,4.16195]
[1610252240715,58.0077,1318.8,1318.3,3.69752]
[1610252240917,4.00959,1318.4,1318.3,3.69752]
[1610252241120,6.09649,1318.4,1318.2,3.69896]
[1610252241419,6.09649,1318.4,1318.1,3.70055]
[1610252242221,6.09649,1318.4,1318.0,3.702]
[1610252242521,6.09649,1318.4,1317.9,3.70262]
[1610252242922,4.00959,1318.0,1317.9,3.70262]
[1610252243122,5.62929,1318.0,1317.9,3.70262]
[1610252243922,5.62929,1318.0,1317.4,4.00959]
[1610252244222,5.62929,1318.0,1317.4,8.1694]
[1610252244821,5.62929,1318.0,1317.4,38.1694]
[1610252245026,5.62929,1318.0,1317.9,4.00959]
[1610252246124,1.6197,1318.0,1317.9,4.00959]
[1610252248329,2.0869,1318.4,1317.9,4.00959]
[1610252248727,4.00959,1318.5,1317.9,4.00959]
[1610252248929,61.8514,1318.7,1318.2,4.00959]
[1610252249129,61.8514,1318.7,1318.4,3.6845]
[1610252250728,61.8514,1318.7,1318.3,3.68336]
[1610252250929,4.00959,1318.4,1318.3,3.68336]
[1610252251129,4.00959,1318.4,1318.2,3.68466]
[1610252251329,6.17449,1318.4,1318.2,3.68466]
[1610252252630,6.17449,1318.4,1318.1,3.68516]
[1610252252930,4.00959,1318.2,1318.1,3.68516]
[1610252253233,4.00959,1318.2,1317.8,4.00959]
[1610252253831,4.00959,1318.2,1317.5,4.14466]
[1610252254031,4.00959,1318.2,1318.1,3.68601]
[1610252254232,4.00959,1318.2,1318.0,3.68711]
[1610252254831,4.00959,1318.2,1317.9,3.68964]
[1610252255030,4.00959,1318.0,1317.9,3.68964]
[1610252255230,5.59879,1318.0,1317.9,3.68964]
[1610252255731,5.59879,1318.0,1317.8,3.6944]
[1610252256234,5.59879,1318.0,1317.9,3.69612]
[1610252257236,5.59879,1318.0,1317.5,4.00959]
[1610252259039,4.00959,1317.7,1317.5,4.00959]
[1610252259340,6.02249,1317.7,1317.5,4.00959]
[1610252260541,2.0129,1317.7,1317.5,4.00959]
[1610252260742,2.0129,1317.7,1317.5,8.16016]
[1610252261641,2.0129,1317.7,1317.5,38.16016]
[1610252261844,2.0129,1317.7,1317.6,34.14874]
[1610252262743,2.0129,1317.7,1317.6,4.14874]
[1610252263643,2.0129,1317.7,1317.6,34.14874]
[1610252264244,1.5892,1318.0,1317.6,34.14874]
[1610252264446,4.00959,1318.2,1317.6,34.14874]
[1610252264644,4.00959,1318.2,1317.7,4.14562]
[1610252264945,4.00959,1318.2,1318.1,4.00959]
[1610252266544,3.9937,1318.2,1318.1,4.00959]
[1610252269346,2.1649,1318.4,1318.1,4.00959]
[1610252269548,2.5798,1318.7,1318.1,4.00959]
[1610252269748,30.0,1320.7,1318.1,4.00959]
[1610252269949,30.0,1320.7,1318.5,3.69198]
[1610252270251,30.0,1320.7,1318.6,3.69073]
[1610252270951,4.00959,1318.7,1318.5,3.69178]
[1610252271151,6.04709,1318.7,1318.5,3.69178]
[1610252271551,6.04709,1318.7,1318.6,3.69093]
[1610252272650,6.04709,1318.7,1318.5,3.69242]
[1610252273857,6.04709,1318.7,1318.4,3.69401]
[1610252275057,4.00959,1318.5,1318.4,3.69401]
[1610252277160,4.00959,1318.5,1318.1,4.00959]
[1610252279061,2.0375,1318.7,1318.3,4.00959]
[1610252279360,2.0375,1318.7,1318.5,3.69204]
[1610252279564,54.8824,1319.9,1318.5,3.69204]
[1610252279762,54.8824,1319.9,1318.6,3.69151]
[1610252280162,54.8824,1319.9,1318.5,3.69164]
[1610252280562,8.4425,1319.8,1318.6,3.69157]
[1610252281065,4.00959,1318.8,1318.6,3.69157]
[1610252281364,5.71929,1318.8,1318.6,3.69157]
[1610252283068,1.7097,1318.8,1318.7,4.00959]
[1610252283267,1.7097,1318.8,1318.7,7.70398]
[1610252283966,1.7097,1318.8,1318.7,4.00959]
[1610252284566,1.7097,1318.8,1318.7,34.00959]
[1610252285968,52.1302,1319.6,1318.7,34.00959]
[1610252286372,52.1302,1319.6,1319.3,3.68446]
[1610252287170,52.1302,1319.6,1319.5,4.00959]
[1610252288774,52.1302,1319.6,1319.5,7.67753]
[1610252289774,52.1302,1319.6,1319.5,4.00959]
[1610252291781,2.4273,1319.8,1319.5,4.00959]
[1610252292079,2.4273,1319.8,1319.6,3.66121]
[1610252292280,4.00959,1320.1,1319.6,3.66121]
[1610252293079,4.00959,1319.9,1319.7,4.00959]
[1610252293282,5.68709,1319.9,1319.7,4.00959]
[1610252294985,1.6775,1319.9,1319.7,4.00959]
[1610252295186,4.00959,1319.8,1319.7,4.00959]
[1610252297589,1.6775,1319.9,1319.7,4.00959]
[1610252298292,50.7474,1320.9,1319.7,4.00959]
[1610252299292,4.00959,1319.8,1319.7,4.00959]
[1610252299694,5.67579,1319.8,1319.7,4.00959]
[1610252304002,1.6662,1319.8,1319.7,4.00959]
[1610252304798,46.9344,1320.9,1319.7,4.00959]
[1610252305197,4.00959,1319.8,1319.7,4.00959]
[1610252305398,5.62969,1319.8,1319.7,4.00959]
[1610252308303,1.6201,1319.8,1319.7,4.00959]
[1610252310503,2.011,1319.8,1319.7,4.00959]
[1610252310704,2.011,1319.8,1319.7,7.67933]
[1610252310906,2.011,1319.8,1319.7,4.00959]
[1610252313308,6.02059,1319.8,1319.7,4.00959]